[Event "*** Titled Tuesday Blitz"]
[Site "Chess.com"]
[Date "2021.04.27"]
[Round "6"]
[White "Agoking701"]
[Black "Shuvalov"]
[Result "1-0"]
[WhiteElo "2275"]
[BlackElo "2436"]
[TimeControl "180+1"]
[EndTime "11:06:19 PDT"]
[Termination "Agoking701 won by resignation"]

1. e4 {[%clk 0:03:00.9]} 1... e6 {[%clk 0:02:53.4]} 2. Nf3 {[%clk 0:02:59.9]}
2... d5 {[%clk 0:02:53.1]} 3. Nc3 {[%clk 0:03:00.8]} 3... Nf6 {[%clk 0:02:51.6]}
4. e5 {[%clk 0:03:01.2]} 4... Nfd7 {[%clk 0:02:50.5]} 5. d4 {[%clk 0:03:02.1]}
5... c5 {[%clk 0:02:50]} 6. dxc5 {[%clk 0:03:03]} 6... Nc6 {[%clk 0:02:48.5]} 7.
Bf4 {[%clk 0:03:01.5]} 7... Bxc5 {[%clk 0:02:45.1]} 8. Bd3 {[%clk 0:03:00.8]}
8... f6 {[%clk 0:02:32.2]} 9. exf6 {[%clk 0:02:58.7]} 9... Qxf6 {[%clk
0:02:24.8]} 10. Bg5 {[%clk 0:02:51]} 10... Qf7 {[%clk 0:02:22.5]} 11. Qe2 {[%clk
0:02:40.2]} 11... O-O {[%clk 0:02:16.7]} 12. O-O {[%clk 0:02:11.2]} 12... Nf6
{[%clk 0:01:57.6]} 13. Rae1 {[%clk 0:01:35.8]} 13... Bb4 {[%clk 0:01:42.9]} 14.
Ne5 {[%clk 0:01:26.6]} 14... Nxe5 {[%clk 0:01:38.9]} 15. Qxe5 {[%clk 0:01:27.5]}
15... Bd7 {[%clk 0:01:33.5]} 16. f4 {[%clk 0:00:49.6]} 16... Qh5 {[%clk
0:00:53.2]} 17. Bxf6 {[%clk 0:00:40.1]} 17... Rxf6 {[%clk 0:00:50.4]} 18. Qxh5
{[%clk 0:00:38.6]} 18... Rc8 {[%clk 0:00:39.3]} 19. Qxh7+ {[%clk 0:00:31.7]}
19... Kf7 {[%clk 0:00:37.6]} 20. Qh5+ {[%clk 0:00:29.9]} 20... Kg8 {[%clk
0:00:35.3]} 21. f5 {[%clk 0:00:29.5]} 21... e5 {[%clk 0:00:27.3]} 22. Rxe5
{[%clk 0:00:24.3]} 22... Bd6 {[%clk 0:00:23.4]} 23. Re6 {[%clk 0:00:22.9]} 23...
Bxe6 {[%clk 0:00:21.2]} 24. fxe6 {[%clk 0:00:23.8]} 24... Bc5+ {[%clk
0:00:21.5]} 25. Kh1 {[%clk 0:00:21.7]} 25... Rh6 {[%clk 0:00:15.1]} 26. Qf7+
{[%clk 0:00:17.6]} 26... Kh8 {[%clk 0:00:15.1]} 27. h3 {[%clk 0:00:14.7]} 27...
d4 {[%clk 0:00:10.7]} 28. Ne4 {[%clk 0:00:13.4]} 28... Bb4 {[%clk 0:00:09]} 29.
e7 {[%clk 0:00:12.1]} 29... Bxe7 {[%clk 0:00:07.5]} 30. Qxe7 {[%clk 0:00:11.7]}
1-0

[Event "*** Titled Tuesday Blitz"]
[Site "Chess.com"]
[Date "2021.04.27"]
[Round "6"]
[White "VladaSviridova"]
[Black "Rodchenkov_Vitalij"]
[Result "1-0"]
[WhiteElo "2281"]
[BlackElo "2055"]
[TimeControl "180+1"]
[EndTime "11:06:19 PDT"]
[Termination "VladaSviridova won by checkmate"]

1. d4 {[%clk 0:02:51.5]} 1... Nf6 {[%clk 0:02:59.6]} 2. c4 {[%clk 0:02:49.9]}
2... e6 {[%clk 0:02:59.6]} 3. Nf3 {[%clk 0:02:50]} 3... Bb4+ {[%clk 0:02:58.1]}
4. Bd2 {[%clk 0:02:50]} 4... a5 {[%clk 0:02:56.5]} 5. g3 {[%clk 0:02:48.3]} 5...
b6 {[%clk 0:02:53.2]} 6. Bg2 {[%clk 0:02:48.1]} 6... Bb7 {[%clk 0:02:53.7]} 7.
O-O {[%clk 0:02:48.1]} 7... O-O {[%clk 0:02:53.2]} 8. Bf4 {[%clk 0:02:47.8]}
8... Be7 {[%clk 0:02:44.4]} 9. Nc3 {[%clk 0:02:46.7]} 9... d6 {[%clk 0:02:43]}
10. Qc2 {[%clk 0:02:45.9]} 10... Nbd7 {[%clk 0:02:40.4]} 11. e4 {[%clk
0:02:45.5]} 11... Re8 {[%clk 0:02:31.7]} 12. Ng5 {[%clk 0:01:59.6]} 12... e5
{[%clk 0:02:17.8]} 13. dxe5 {[%clk 0:01:58.6]} 13... dxe5 {[%clk 0:02:14.6]} 14.
Bd2 {[%clk 0:01:53.3]} 14... Nc5 {[%clk 0:02:03.5]} 15. h4 {[%clk 0:01:43.8]}
15... h6 {[%clk 0:01:59.1]} 16. Nh3 {[%clk 0:01:34.3]} 16... Bf8 {[%clk
0:01:48.8]} 17. Nd5 {[%clk 0:01:28]} 17... Nxd5 {[%clk 0:01:24.5]} 18. exd5
{[%clk 0:01:25.6]} 18... e4 {[%clk 0:01:09.6]} 19. Rfe1 {[%clk 0:00:56.6]} 19...
f5 {[%clk 0:01:03.7]} 20. Nf4 {[%clk 0:00:52.5]} 20... Bc8 {[%clk 0:00:59.6]}
21. Bc3 {[%clk 0:00:52]} 21... g5 {[%clk 0:00:53.8]} 22. Nh5 {[%clk 0:00:41.7]}
22... Be7 {[%clk 0:00:42.8]} 23. hxg5 {[%clk 0:00:39.3]} 23... Bxg5 {[%clk
0:00:35.6]} 24. f4 {[%clk 0:00:31.9]} 24... Be7 {[%clk 0:00:28.8]} 25. g4 {[%clk
0:00:20.3]} 25... Nd3 {[%clk 0:00:27.7]} 26. Re2 {[%clk 0:00:14.1]} 26... fxg4
{[%clk 0:00:16.4]} 27. Bxe4 {[%clk 0:00:13.3]} 27... Nc5 {[%clk 0:00:12.9]} 28.
Bh7+ {[%clk 0:00:12.9]} 28... Kf8 {[%clk 0:00:07.7]} 29. Bg7+ {[%clk 0:00:12.6]}
29... Kf7 {[%clk 0:00:06.9]} 30. Qg6# {[%clk 0:00:12.8]} 1-0

[Event "*** Titled Tuesday Blitz"]
[Site "Chess.com"]
[Date "2021.04.27"]
[Round "6"]
[White "DeTimmerman"]
[Black "HonzaVykouk"]
[Result "1-0"]
[WhiteElo "2804"]
[BlackElo "2591"]
[TimeControl "180+1"]
[EndTime "11:06:20 PDT"]
[Termination "DeTimmerman won by resignation"]

1. b4 {[%clk 0:03:00.9]} 1... e5 {[%clk 0:02:57.5]} 2. Bb2 {[%clk 0:02:57.3]}
2... Bxb4 {[%clk 0:02:57.9]} 3. Bxe5 {[%clk 0:02:55.6]} 3... Nf6 {[%clk
0:02:58.5]} 4. Nc3 {[%clk 0:02:55.8]} 4... Nc6 {[%clk 0:02:58.7]} 5. Bxf6 {[%clk
0:02:55.1]} 5... Qxf6 {[%clk 0:02:58.7]} 6. Nd5 {[%clk 0:02:56]} 6... Qb2 {[%clk
0:02:29.6]} 7. Rb1 {[%clk 0:02:27.8]} 7... Qxa2 {[%clk 0:02:10.5]} 8. Nxb4
{[%clk 0:02:20.6]} 8... Nxb4 {[%clk 0:02:11.4]} 9. Rxb4 {[%clk 0:02:21.1]} 9...
a5 {[%clk 0:02:12.1]} 10. Rb1 {[%clk 0:02:20.9]} 10... a4 {[%clk 0:02:11.2]} 11.
e3 {[%clk 0:02:17.9]} 11... a3 {[%clk 0:02:09.6]} 12. Nf3 {[%clk 0:02:17.4]}
12... O-O {[%clk 0:02:06.9]} 13. Bd3 {[%clk 0:02:08.8]} 13... d6 {[%clk
0:02:05.5]} 14. O-O {[%clk 0:02:07.3]} 14... Qd5 {[%clk 0:02:01.8]} 15. Qe2
{[%clk 0:02:02.3]} 15... Be6 {[%clk 0:01:55]} 16. Nd4 {[%clk 0:02:00.9]} 16...
Qe5 {[%clk 0:01:53.2]} 17. Nxe6 {[%clk 0:02:00.5]} 17... fxe6 {[%clk 0:01:47.2]}
18. f4 {[%clk 0:01:58.4]} 18... Qf6 {[%clk 0:01:45.4]} 19. c3 {[%clk 0:01:55.7]}
19... b6 {[%clk 0:01:31.9]} 20. Ra1 {[%clk 0:01:50.4]} 20... Ra5 {[%clk
0:01:20.1]} 21. Ra2 {[%clk 0:01:47.7]} 21... Rfa8 {[%clk 0:01:18.4]} 22. Rfa1
{[%clk 0:01:46.8]} 22... d5 {[%clk 0:01:18.8]} 23. Qe1 {[%clk 0:01:42.9]} 23...
Qe7 {[%clk 0:01:13.4]} 24. Qb1 {[%clk 0:01:43]} 24... g6 {[%clk 0:01:10.1]} 25.
Qb4 {[%clk 0:01:39.5]} 25... Kf7 {[%clk 0:00:47.2]} 26. Kf2 {[%clk 0:01:30.5]}
26... Qd6 {[%clk 0:00:45.4]} 27. Qxd6 {[%clk 0:01:28.5]} 27... cxd6 {[%clk
0:00:46.3]} 28. Ke2 {[%clk 0:01:25.5]} 28... e5 {[%clk 0:00:46.6]} 29. Bc2
{[%clk 0:01:20.8]} 29... Ke6 {[%clk 0:00:46.3]} 30. Bb3 {[%clk 0:01:20.9]} 30...
Kd7 {[%clk 0:00:41.2]} 31. g3 {[%clk 0:01:18.9]} 31... Kc6 {[%clk 0:00:41.2]}
32. Kd3 {[%clk 0:01:16.7]} 32... b5 {[%clk 0:00:41]} 33. Kc2 {[%clk 0:01:14.2]}
33... h5 {[%clk 0:00:34]} 34. fxe5 {[%clk 0:01:14.2]} 34... dxe5 {[%clk
0:00:34]} 35. Rf1 {[%clk 0:01:14.8]} 35... Kc5 {[%clk 0:00:30.8]} 36. Rf6 {[%clk
0:01:00.4]} 36... e4 {[%clk 0:00:28.2]} 37. Rxg6 {[%clk 0:00:56.5]} 37... Rf8
{[%clk 0:00:26.1]} 38. Rg5 {[%clk 0:00:56.9]} 38... Rd8 {[%clk 0:00:25.2]} 39.
Rxh5 {[%clk 0:00:53.6]} 39... b4 {[%clk 0:00:26.1]} 40. Bxd5 {[%clk 0:00:46.8]}
40... Rxd5 {[%clk 0:00:22.1]} 41. Rxd5+ {[%clk 0:00:47.7]} 41... Kxd5 {[%clk
0:00:21.7]} 42. cxb4 {[%clk 0:00:48.2]} 42... Ra8 {[%clk 0:00:21.3]} 43. Kb3
{[%clk 0:00:47.9]} 43... Rh8 {[%clk 0:00:22]} 44. Rxa3 {[%clk 0:00:45]} 44...
Rxh2 {[%clk 0:00:22.9]} 45. Ra5+ {[%clk 0:00:44.4]} 45... Kd6 {[%clk 0:00:23.3]}
46. Ra2 {[%clk 0:00:44.3]} 46... Rg2 {[%clk 0:00:23]} 47. Kc4 {[%clk 0:00:44.4]}
47... Rxg3 {[%clk 0:00:23.4]} 48. Kd4 {[%clk 0:00:44.6]} 48... Rg1 {[%clk
0:00:20.6]} 49. Rb2 {[%clk 0:00:43.1]} 49... Rb1 {[%clk 0:00:21.5]} 50. Rxb1
{[%clk 0:00:43]} 1-0

[Event "*** Titled Tuesday Blitz"]
[Site "Chess.com"]
[Date "2021.04.27"]
[Round "6"]
[White "blitzking1729"]
[Black "djano"]
[Result "1-0"]
[WhiteElo "2673"]
[BlackElo "2489"]
[TimeControl "180+1"]
[EndTime "11:06:20 PDT"]
[Termination "blitzking1729 won by resignation"]

1. c4 {[%clk 0:03:00]} 1... c6 {[%clk 0:02:59.1]} 2. e4 {[%clk 0:02:59.4]} 2...
g6 {[%clk 0:02:56.2]} 3. d4 {[%clk 0:02:58]} 3... Bg7 {[%clk 0:02:56.4]} 4. Nc3
{[%clk 0:02:57.7]} 4... d6 {[%clk 0:02:55.8]} 5. h3 {[%clk 0:02:56.5]} 5... Nd7
{[%clk 0:02:54.6]} 6. Be3 {[%clk 0:02:55.7]} 6... Ngf6 {[%clk 0:02:54]} 7. Nf3
{[%clk 0:02:54.6]} 7... e5 {[%clk 0:02:53.2]} 8. d5 {[%clk 0:02:43.8]} 8... cxd5
{[%clk 0:02:47.5]} 9. cxd5 {[%clk 0:02:42.6]} 9... O-O {[%clk 0:02:45.9]} 10.
Be2 {[%clk 0:02:38.1]} 10... Nh5 {[%clk 0:02:42]} 11. g3 {[%clk 0:02:33.6]}
11... a6 {[%clk 0:02:15.6]} 12. a4 {[%clk 0:02:26.1]} 12... Qe8 {[%clk
0:02:04.5]} 13. Nd2 {[%clk 0:02:20]} 13... f5 {[%clk 0:02:03.4]} 14. exf5 {[%clk
0:02:17.1]} 14... Ndf6 {[%clk 0:01:33.2]} 15. fxg6 {[%clk 0:02:11.5]} 15... Qxg6
{[%clk 0:01:19]} 16. Nde4 {[%clk 0:02:04.2]} 16... Nxe4 {[%clk 0:00:55.2]} 17.
Bxh5 {[%clk 0:02:02.8]} 17... Nxc3 {[%clk 0:00:54.1]} 18. bxc3 {[%clk
0:02:02.1]} 18... Qe4 {[%clk 0:00:48.2]} 19. Ke2 {[%clk 0:01:10]} 19... Bf5
{[%clk 0:00:33.5]} 20. Bg4 {[%clk 0:00:55.9]} 20... Qc4+ {[%clk 0:00:31.7]} 21.
Ke1 {[%clk 0:00:43]} 21... e4 {[%clk 0:00:21.1]} 22. Bd4 {[%clk 0:00:37.2]}
22... Bxg4 {[%clk 0:00:17.7]} 23. Qxg4 {[%clk 0:00:35.6]} 23... Rf7 {[%clk
0:00:13.4]} 24. Rd1 {[%clk 0:00:23.7]} 24... Re8 {[%clk 0:00:10.7]} 25. h4
{[%clk 0:00:23.3]} 25... Kh8 {[%clk 0:00:09.6]} 26. Qe2 {[%clk 0:00:17.3]} 26...
Bxd4 {[%clk 0:00:07.6]} 27. Qxc4 {[%clk 0:00:16.1]} 1-0

[Event "*** Titled Tuesday Blitz"]
[Site "Chess.com"]
[Date "2021.04.27"]
[Round "6"]
[White "ljuks68"]
[Black "Lyschko"]
[Result "0-1"]
[WhiteElo "2435"]
[BlackElo "2278"]
[TimeControl "180+1"]
[EndTime "11:06:20 PDT"]
[Termination "Lyschko won by checkmate"]

1. e4 {[%clk 0:03:00.9]} 1... Nf6 {[%clk 0:02:59.9]} 2. e5 {[%clk 0:03:00.5]}
2... Nd5 {[%clk 0:02:59.9]} 3. c4 {[%clk 0:03:01]} 3... Nb6 {[%clk 0:02:59.4]}
4. d4 {[%clk 0:03:01.5]} 4... d6 {[%clk 0:02:59.6]} 5. f4 {[%clk 0:03:01.9]}
5... dxe5 {[%clk 0:02:59.1]} 6. fxe5 {[%clk 0:03:01.9]} 6... c5 {[%clk
0:02:59.7]} 7. d5 {[%clk 0:03:01.6]} 7... g6 {[%clk 0:03:00.3]} 8. Nf3 {[%clk
0:03:00.9]} 8... Bg7 {[%clk 0:03:00.3]} 9. Nc3 {[%clk 0:03:00.9]} 9... Bg4
{[%clk 0:02:59.6]} 10. Bf4 {[%clk 0:02:59.1]} 10... O-O {[%clk 0:02:58.5]} 11.
Be2 {[%clk 0:02:49.5]} 11... N8d7 {[%clk 0:02:57.7]} 12. Qd2 {[%clk 0:01:52.4]}
12... Bxf3 {[%clk 0:02:53.4]} 13. gxf3 {[%clk 0:01:52.3]} 13... Nxe5 {[%clk
0:02:50.5]} 14. b3 {[%clk 0:01:52.4]} 14... e6 {[%clk 0:02:23.6]} 15. O-O-O
{[%clk 0:01:49.3]} 15... exd5 {[%clk 0:02:16.3]} 16. cxd5 {[%clk 0:01:49.2]}
16... c4 {[%clk 0:02:04.2]} 17. b4 {[%clk 0:01:48.7]} 17... Qf6 {[%clk 0:01:47]}
18. Ne4 {[%clk 0:01:26.3]} 18... Qf5 {[%clk 0:01:17.4]} 19. Bh6 {[%clk
0:01:13.1]} 19... Nd3+ {[%clk 0:00:58.3]} 20. Bxd3 {[%clk 0:01:10.6]} 20... cxd3
{[%clk 0:00:55.4]} 21. Bxg7 {[%clk 0:01:10.5]} 21... Kxg7 {[%clk 0:00:49.1]} 22.
Qxd3 {[%clk 0:01:09.7]} 22... Rac8+ {[%clk 0:00:47.9]} 23. Kb1 {[%clk
0:01:09.1]} 23... Rfd8 {[%clk 0:00:42.3]} 24. Qd4+ {[%clk 0:00:55.7]} 24... f6
{[%clk 0:00:41.9]} 25. d6 {[%clk 0:00:55.6]} 25... Rc4 {[%clk 0:00:37.4]} 26.
Qd2 {[%clk 0:00:49.8]} 26... Qxf3 {[%clk 0:00:33]} 27. Nc5 {[%clk 0:00:44.4]}
27... Qf5+ {[%clk 0:00:27.9]} 28. Kb2 {[%clk 0:00:29.2]} 28... Rxd6 {[%clk
0:00:14.9]} 29. Qxd6 {[%clk 0:00:26.1]} 29... Rxb4+ {[%clk 0:00:14.9]} 30. Ka1
{[%clk 0:00:24.5]} 30... Nc4 {[%clk 0:00:12]} 31. Ne6+ {[%clk 0:00:23.5]} 31...
Kh6 {[%clk 0:00:11]} 32. Qf4+ {[%clk 0:00:21.9]} 32... Qxf4 {[%clk 0:00:10.4]}
33. Nxf4 {[%clk 0:00:22]} 33... Ne3 {[%clk 0:00:10.3]} 34. Nd5 {[%clk
0:00:18.8]} 34... Nc2# {[%clk 0:00:09.2]} 0-1

[Event "*** Titled Tuesday Blitz"]
[Site "Chess.com"]
[Date "2021.04.27"]
[Round "6"]
[White "ferch1ni"]
[Black "BursaBBSatranc"]
[Result "1-0"]
[WhiteElo "2385"]
[BlackElo "2568"]
[TimeControl "180+1"]
[EndTime "11:06:21 PDT"]
[Termination "ferch1ni won on time"]

1. e4 {[%clk 0:03:00.9]} 1... e5 {[%clk 0:03:00]} 2. Nf3 {[%clk 0:02:54.6]} 2...
Nf6 {[%clk 0:02:59.9]} 3. Bc4 {[%clk 0:02:52.8]} 3... Nxe4 {[%clk 0:02:59.6]} 4.
Nc3 {[%clk 0:02:52.7]} 4... Nxc3 {[%clk 0:02:49.1]} 5. dxc3 {[%clk 0:02:53.6]}
5... f6 {[%clk 0:02:48.9]} 6. Nh4 {[%clk 0:02:52.2]} 6... g6 {[%clk 0:02:46.1]}
7. f4 {[%clk 0:02:51.8]} 7... f5 {[%clk 0:02:45.2]} 8. Nxf5 {[%clk 0:02:45.7]}
8... d5 {[%clk 0:02:44.7]} 9. Bxd5 {[%clk 0:02:36.6]} 9... Bxf5 {[%clk
0:02:22.6]} 10. Bxb7 {[%clk 0:02:24.4]} 10... Nd7 {[%clk 0:02:22.4]} 11. Bxa8
{[%clk 0:02:23.9]} 11... Qxa8 {[%clk 0:02:23.3]} 12. Qe2 {[%clk 0:02:22.1]}
12... Qd5 {[%clk 0:01:33.1]} 13. O-O {[%clk 0:02:09.4]} 13... Bc5+ {[%clk
0:01:31.6]} 14. Kh1 {[%clk 0:02:09.4]} 14... O-O {[%clk 0:01:24.4]} 15. fxe5
{[%clk 0:02:04.4]} 15... Nxe5 {[%clk 0:01:18.2]} 16. Bf4 {[%clk 0:02:04.3]}
16... Ng4 {[%clk 0:01:09.8]} 17. Rad1 {[%clk 0:01:58.1]} 17... Qxa2 {[%clk
0:00:52.8]} 18. Bxc7 {[%clk 0:01:57.2]} 18... Ne3 {[%clk 0:00:43.7]} 19. Bd6
{[%clk 0:01:22.9]} 19... Bxd6 {[%clk 0:00:20.2]} 20. Qxe3 {[%clk 0:01:20.8]}
20... Bb8 {[%clk 0:00:17.7]} 21. g4 {[%clk 0:01:04.2]} 21... Be6 {[%clk
0:00:11.8]} 22. Rxf8+ {[%clk 0:00:42.7]} 22... Kxf8 {[%clk 0:00:12.7]} 23. Rd8+
{[%clk 0:00:26.3]} 23... Kg7 {[%clk 0:00:10.4]} 24. Rxb8 {[%clk 0:00:11.1]}
24... Qd5+ {[%clk 0:00:08.3]} 25. Kg1 {[%clk 0:00:11.1]} 25... Qd1+ {[%clk
0:00:06.7]} 26. Kf2 {[%clk 0:00:11.4]} 26... Qxg4 {[%clk 0:00:01.2]} 27. Qd4+
{[%clk 0:00:11.2]} 27... Kh6 {[%clk 0:00:01.3]} 28. Qxg4 {[%clk 0:00:10.9]} 1-0

[Event "*** Titled Tuesday Blitz"]
[Site "Chess.com"]
[Date "2021.04.27"]
[Round "6"]
[White "Smile2005"]
[Black "PolandHussars"]
[Result "0-1"]
[WhiteElo "2390"]
[BlackElo "2631"]
[TimeControl "180+1"]
[EndTime "11:06:24 PDT"]
[Termination "PolandHussars won by resignation"]

1. Nf3 {[%clk 0:02:59.1]} 1... d5 {[%clk 0:02:59.5]} 2. g3 {[%clk 0:03:00]} 2...
Bg4 {[%clk 0:02:59.4]} 3. Bg2 {[%clk 0:03:00.9]} 3... Nd7 {[%clk 0:02:59.6]} 4.
O-O {[%clk 0:03:01.2]} 4... Ngf6 {[%clk 0:02:59.5]} 5. d3 {[%clk 0:03:01.3]}
5... e5 {[%clk 0:02:59.5]} 6. Nbd2 {[%clk 0:03:01.3]} 6... Bc5 {[%clk
0:02:59.7]} 7. e4 {[%clk 0:03:01.6]} 7... O-O {[%clk 0:02:57.3]} 8. c3 {[%clk
0:03:01]} 8... c6 {[%clk 0:02:56.9]} 9. Qe2 {[%clk 0:03:01]} 9... Re8 {[%clk
0:02:57]} 10. h3 {[%clk 0:03:01]} 10... Bh5 {[%clk 0:02:56.7]} 11. g4 {[%clk
0:03:00.9]} 11... Bg6 {[%clk 0:02:57]} 12. Nh4 {[%clk 0:03:01.6]} 12... Nxe4
{[%clk 0:02:39]} 13. Nxe4 {[%clk 0:02:16.7]} 13... dxe4 {[%clk 0:02:36.8]} 14.
Nxg6 {[%clk 0:02:14.2]} 14... exd3 {[%clk 0:02:30.3]} 15. Qxd3 {[%clk
0:02:13.2]} 15... hxg6 {[%clk 0:02:30.3]} 16. a4 {[%clk 0:02:11.3]} 16... Nf6
{[%clk 0:02:25.9]} 17. Qc4 {[%clk 0:02:11.4]} 17... Bb6 {[%clk 0:02:22.5]} 18.
Bg5 {[%clk 0:02:11.1]} 18... Qe7 {[%clk 0:02:19.6]} 19. a5 {[%clk 0:02:09.7]}
19... Qc5 {[%clk 0:02:14.9]} 20. Qe2 {[%clk 0:01:34.1]} 20... Bc7 {[%clk
0:02:10.6]} 21. Bxf6 {[%clk 0:01:33.5]} 21... gxf6 {[%clk 0:02:10.6]} 22. Qe4
{[%clk 0:01:32.6]} 22... a6 {[%clk 0:02:06.4]} 23. h4 {[%clk 0:01:30.6]} 23...
Kg7 {[%clk 0:02:03.3]} 24. h5 {[%clk 0:01:27.5]} 24... Rh8 {[%clk 0:02:02.1]}
25. hxg6 {[%clk 0:01:26.1]} 25... fxg6 {[%clk 0:02:03]} 26. Rfd1 {[%clk
0:01:24.6]} 26... Rad8 {[%clk 0:02:02.8]} 27. Bf1 {[%clk 0:01:14.8]} 27... Qe7
{[%clk 0:01:45.4]} 28. Bd3 {[%clk 0:01:12.1]} 28... Qf7 {[%clk 0:01:42.5]} 29.
Bc4 {[%clk 0:01:12]} 29... Qe7 {[%clk 0:01:41.9]} 30. Kg2 {[%clk 0:01:10.4]}
30... Rxd1 {[%clk 0:01:34.5]} 31. Rxd1 {[%clk 0:01:10.3]} 31... Bxa5 {[%clk
0:01:33.1]} 32. Bd3 {[%clk 0:01:04.7]} 32... Rh6 {[%clk 0:01:33.1]} 33. Rh1
{[%clk 0:01:03]} 33... Qf7 {[%clk 0:01:26.3]} 34. Bc4 {[%clk 0:00:08.1]} 34...
Qe8 {[%clk 0:01:20.5]} 35. Rxh6 {[%clk 0:00:03.7]} 35... Kxh6 {[%clk 0:01:21.4]}
36. g5+ {[%clk 0:00:03.8]} 36... fxg5 {[%clk 0:01:14.6]} 37. Qg4 {[%clk
0:00:03.4]} 37... Bd8 {[%clk 0:01:06.9]} 38. Qh3+ {[%clk 0:00:03.5]} 38... Kg7
{[%clk 0:01:06.8]} 39. Qg4 {[%clk 0:00:03.6]} 39... Qe7 {[%clk 0:01:07]} 40. f3
{[%clk 0:00:03.3]} 40... Bb6 {[%clk 0:01:05.9]} 41. b4 {[%clk 0:00:03.1]} 41...
a5 {[%clk 0:01:02]} 42. bxa5 {[%clk 0:00:02.7]} 42... Bxa5 {[%clk 0:01:02.9]}
43. Bd3 {[%clk 0:00:02.3]} 43... Bxc3 {[%clk 0:01:01.9]} 44. Qe4 {[%clk
0:00:02.6]} 44... Qf7 {[%clk 0:01:01]} 45. Bc4 {[%clk 0:00:02.3]} 45... Qf5
{[%clk 0:01:00.5]} 46. Qd3 {[%clk 0:00:02.6]} 46... Qxd3 {[%clk 0:01:00.3]} 47.
Bxd3 {[%clk 0:00:03.5]} 47... b5 {[%clk 0:01:00.3]} 0-1

[Event "*** Titled Tuesday Blitz"]
[Site "Chess.com"]
[Date "2021.04.27"]
[Round "6"]
[White "levallem"]
[Black "atwalcb"]
[Result "1-0"]
[WhiteElo "2279"]
[BlackElo "2437"]
[TimeControl "180+1"]
[EndTime "11:06:24 PDT"]
[Termination "levallem won by resignation"]

1. e4 {[%clk 0:03:00.9]} 1... e5 {[%clk 0:02:16.8]} 2. Nf3 {[%clk 0:02:37.7]}
2... Nc6 {[%clk 0:02:15.9]} 3. Bb5 {[%clk 0:02:37.8]} 3... a6 {[%clk 0:02:14.8]}
4. Ba4 {[%clk 0:02:38.2]} 4... Nf6 {[%clk 0:02:14.7]} 5. O-O {[%clk 0:02:37.7]}
5... Be7 {[%clk 0:02:15.1]} 6. Re1 {[%clk 0:02:35.9]} 6... b5 {[%clk 0:02:12.6]}
7. Bb3 {[%clk 0:02:36.4]} 7... O-O {[%clk 0:02:13.5]} 8. c3 {[%clk 0:02:36.8]}
8... d5 {[%clk 0:02:12.6]} 9. exd5 {[%clk 0:02:37.4]} 9... Nxd5 {[%clk
0:02:13.5]} 10. Nxe5 {[%clk 0:02:38]} 10... Nxe5 {[%clk 0:02:14.4]} 11. Rxe5
{[%clk 0:02:38.5]} 11... c6 {[%clk 0:02:15.1]} 12. d4 {[%clk 0:02:37.7]} 12...
Bd6 {[%clk 0:02:15.5]} 13. Re1 {[%clk 0:02:37.4]} 13... Qh4 {[%clk 0:02:15.6]}
14. g3 {[%clk 0:02:32.3]} 14... Qh3 {[%clk 0:02:15.8]} 15. Qf3 {[%clk
0:02:27.6]} 15... Bg4 {[%clk 0:02:13.9]} 16. Qg2 {[%clk 0:02:25.5]} 16... Qh5
{[%clk 0:02:13.5]} 17. Be3 {[%clk 0:02:15.2]} 17... Rae8 {[%clk 0:02:06.3]} 18.
Nd2 {[%clk 0:02:07.1]} 18... Nf6 {[%clk 0:01:30]} 19. Bc2 {[%clk 0:01:41.9]}
19... Bh3 {[%clk 0:01:17]} 20. Qf3 {[%clk 0:01:33.8]} 20... Bg4 {[%clk
0:01:16.4]} 21. Qg2 {[%clk 0:01:32.6]} 21... Bh3 {[%clk 0:01:15.6]} 22. Qf3
{[%clk 0:01:32.7]} 22... Ng4 {[%clk 0:01:09.5]} 23. Ne4 {[%clk 0:01:00.5]} 23...
Bb8 {[%clk 0:01:06.8]} 24. Ng5 {[%clk 0:00:48.5]} 24... f5 {[%clk 0:01:05.2]}
25. Bf4 {[%clk 0:00:30]} 25... Bxf4 {[%clk 0:00:48.8]} 26. gxf4 {[%clk
0:00:29.8]} 26... h6 {[%clk 0:00:39.7]} 27. Qxh3 {[%clk 0:00:25.5]} 27... Qg6
{[%clk 0:00:23]} 28. Qxg4 {[%clk 0:00:24.9]} 28... hxg5 {[%clk 0:00:21.9]} 29.
Qxg5 {[%clk 0:00:22.9]} 29... Qh7 {[%clk 0:00:20.9]} 30. Rxe8 {[%clk 0:00:20.9]}
30... Rxe8 {[%clk 0:00:04.6]} 31. Bxf5 {[%clk 0:00:21.3]} 31... Qh8 {[%clk
0:00:02.7]} 32. Bd7 {[%clk 0:00:20.6]} 32... Re7 {[%clk 0:00:02.7]} 33. Qxe7
{[%clk 0:00:20]} 1-0

[Event "*** Titled Tuesday Blitz"]
[Site "Chess.com"]
[Date "2021.04.27"]
[Round "6"]
[White "IsuruAlahakoon"]
[Black "aljado"]
[Result "0-1"]
[WhiteElo "2165"]
[BlackElo "2043"]
[TimeControl "180+1"]
[EndTime "11:06:25 PDT"]
[Termination "aljado won on time"]

1. Nf3 {[%clk 0:03:00.9]} 1... Nf6 {[%clk 0:02:58.2]} 2. d4 {[%clk 0:03:00.8]}
2... d5 {[%clk 0:02:56.6]} 3. c4 {[%clk 0:02:59.7]} 3... c6 {[%clk 0:02:56]} 4.
e3 {[%clk 0:02:58.2]} 4... e6 {[%clk 0:02:55.8]} 5. Nbd2 {[%clk 0:02:57.1]} 5...
Nbd7 {[%clk 0:02:55.3]} 6. Bd3 {[%clk 0:02:55.7]} 6... Be7 {[%clk 0:02:55]} 7.
b3 {[%clk 0:02:54.8]} 7... O-O {[%clk 0:02:54.4]} 8. Bb2 {[%clk 0:02:54.8]} 8...
b6 {[%clk 0:02:53.8]} 9. O-O {[%clk 0:02:54.3]} 9... Bb7 {[%clk 0:02:53.9]} 10.
Ne5 {[%clk 0:02:51.4]} 10... Rc8 {[%clk 0:02:42]} 11. Qf3 {[%clk 0:02:45.5]}
11... c5 {[%clk 0:02:37.7]} 12. cxd5 {[%clk 0:02:44.6]} 12... exd5 {[%clk
0:02:33]} 13. Qh3 {[%clk 0:02:43.7]} 13... h6 {[%clk 0:02:26.9]} 14. Bf5 {[%clk
0:02:35.9]} 14... cxd4 {[%clk 0:02:14.5]} 15. Bxd4 {[%clk 0:02:08.6]} 15... Rc7
{[%clk 0:01:37]} 16. Rac1 {[%clk 0:01:59]} 16... Rxc1 {[%clk 0:01:32.9]} 17.
Rxc1 {[%clk 0:01:56.6]} 17... Nxe5 {[%clk 0:01:29.2]} 18. Bxe5 {[%clk
0:01:57.5]} 18... d4 {[%clk 0:01:27.1]} 19. Bxd4 {[%clk 0:01:45.6]} 19... Bc5
{[%clk 0:01:08.5]} 20. Nf3 {[%clk 0:01:13.4]} 20... Bxd4 {[%clk 0:00:35.7]} 21.
Nxd4 {[%clk 0:01:10.8]} 21... Qd5 {[%clk 0:00:34.7]} 22. Bd3 {[%clk 0:01:02.9]}
22... Qa5 {[%clk 0:00:27.8]} 23. a4 {[%clk 0:00:52.2]} 23... Qd2 {[%clk
0:00:26.1]} 24. Rf1 {[%clk 0:00:05]} 24... Qxd3 {[%clk 0:00:25.1]} 25. Qg3
{[%clk 0:00:05.7]} 25... Ba6 {[%clk 0:00:21.8]} 26. Re1 {[%clk 0:00:04.9]} 26...
Qd2 {[%clk 0:00:20.2]} 27. Ra1 {[%clk 0:00:02.8]} 27... Rc8 {[%clk 0:00:18.5]}
28. h3 {[%clk 0:00:01]} 28... Rc1+ {[%clk 0:00:17.7]} 29. Rxc1 {[%clk
0:00:01.2]} 29... Qxc1+ {[%clk 0:00:18]} 30. Kh2 {[%clk 0:00:01.8]} 30... Qb1
{[%clk 0:00:14.8]} 0-1